bitfinex/quotes_BTCUSD_20230106
["timestamp","ask_amount","ask_price","bid_price","bid_amount"]
[1672963898381,0.594788,16841.0,16840.0,0.78890424]
[1672963899125,0.594788,16841.0,16840.0,0.85552124]
[1672963900353,0.001,16841.0,16840.0,1.49851528]
[1672963900613,0.4464487,16841.0,16840.0,1.43189828]
[1672963900855,1.0402367,16841.0,16840.0,8.99851528]
[1672963901336,0.594788,16841.0,16840.0,8.35552124]
[1672963901831,0.594788,16841.0,16840.0,0.20652703]
[1672963902128,0.594788,16841.0,16840.0,0.13991003]
[1672963902372,1.188576,16841.0,16840.0,0.13991003]
[1672963902623,1.188576,16841.0,16840.0,0.80228627]
[1672963903854,1.72192925,16841.0,16840.0,0.13991003]
[1672963905260,1.72192925,16841.0,16840.0,0.20652703]
[1672963905507,1.188576,16841.0,16840.0,0.13991003]
[1672963905818,1.188576,16841.0,16840.0,0.20652703]
[1672963907953,1.188576,16841.0,16840.0,0.13991003]
[1672963908736,1.72192925,16841.0,16840.0,0.13991003]
[1672963909777,1.72192925,16841.0,16840.0,0.20652703]
[1672963909996,1.188576,16841.0,16840.0,0.20652703]
[1672963910270,1.188576,16841.0,16840.0,0.86890327]
[1672963910514,1.72192925,16841.0,16840.0,0.86890327]
[1672963910763,1.72192925,16841.0,16840.0,0.20652703]
[1672963911024,1.188576,16841.0,16840.0,0.20652703]
[1672963911271,0.594788,16841.0,16840.0,1.57776609]
[1672963911530,0.44641399,16841.0,16840.0,1.57776609]
[1672963911796,0.44641399,16841.0,16840.0,1.51470109]
[1672963912049,0.44641399,16841.0,16840.0,9.08131809]
[1672963915910,0.44641399,16841.0,16840.0,8.41894185]
[1672963916383,0.80272771,16841.0,16840.0,8.41894185]
[1672963918415,0.80272771,16841.0,16840.0,8.41887806]
[1672963918942,0.80272771,16841.0,16840.0,9.0812543]
[1672963919436,0.80272771,16841.0,16840.0,8.41887806]
[1672963919689,0.80272771,16841.0,16840.0,9.0812543]
[1672963921698,0.80272771,16841.0,16840.0,1.5812543]
[1672963921943,0.80272771,16841.0,16840.0,1.5146373]
[1672963922194,0.47717401,16841.0,16840.0,0.85226106]
[1672963922445,0.17488973,16841.0,16840.0,0.85226106]
[1672963922696,0.76867773,16841.0,16840.0,0.85226106]
[1672963924437,0.76867773,16841.0,16840.0,0.91887806]
[1672963924984,0.73791771,16841.0,16840.0,1.5812543]
[1672963926366,0.594788,16841.0,16840.0,1.5812543]
[1672963930981,0.001,16841.0,16840.0,1.5812543]
[1672963931295,0.80276538,16841.0,16840.0,1.5812543]
[1672963931549,0.80276538,16841.0,16840.0,1.5146373]
[1672963931810,0.80276538,16841.0,16840.0,1.5812543]
[1672963933997,0.80276538,16841.0,16840.0,2.0812543]
[1672963934257,1.0699918,16841.0,16840.0,2.0812543]
[1672963935031,1.06999117,16841.0,16840.0,2.0812543]
[1672963935298,1.06999045,16841.0,16840.0,2.0812543]
[1672963935522,0.80276538,16841.0,16840.0,2.0812543]
[1672963936031,0.62454193,16841.0,16840.0,2.0812543]
[1672963936806,1.06997537,16841.0,16840.0,2.0812543]
[1672963937079,0.62454193,16841.0,16840.0,2.0812543]
[1672963938363,0.62454193,16841.0,16840.0,2.6750783]
[1672963938611,0.62454193,16841.0,16840.0,2.6084613]
[1672963938887,0.62454193,16841.0,16840.0,10.1084613]
[1672963939126,0.62454193,16841.0,16840.0,10.1750783]
[1672963939384,0.80265994,16841.0,16840.0,10.1750783]
[1672963939639,0.62454193,16841.0,16840.0,10.1750783]
[1672963939898,0.80264733,16841.0,16840.0,2.6750783]
[1672963940165,0.80264733,16841.0,16840.0,2.6084613]
[1672963940413,0.80264733,16841.0,16840.0,10.1084613]
[1672963940670,0.80264733,16841.0,16840.0,10.1750783]
[1672963941448,0.80264733,16841.0,16840.0,2.6750783]
[1672963941692,0.80264733,16841.0,16840.0,2.6084613]
[1672963941967,0.80264733,16841.0,16840.0,10.1084613]
[1672963941968,0.44631539,16841.0,16840.0,10.1084613]
[1672963942223,0.80264733,16841.0,16840.0,10.1750783]
[1672963943016,0.62454193,16841.0,16840.0,10.1750783]
[1672963943246,0.62454193,16841.0,16840.0,9.5812543]
[1672963943779,1.06997537,16841.0,16840.0,1.5812543]
[1672963944102,0.80276538,16841.0,16840.0,1.51453146]
[1672963944628,0.80276538,16841.0,16840.0,1.58114846]
[1672963947491,0.80276538,16841.0,16840.0,0.85215522]
[1672963947994,0.80276538,16841.0,16840.0,1.4163121]
[1672963948269,0.44643344,16841.0,16840.0,1.4163121]
[1672963950709,0.44643344,16841.0,16840.0,0.91877222]
[1672963950926,0.44643344,16841.0,16840.0,0.85215522]
[1672963951738,0.44643344,16841.0,16840.0,1.34951323]
[1672963952037,0.44643344,16841.0,16840.0,1.41613023]
[1672963952541,0.44643344,16841.0,16840.0,1.34951323]
[1672963953336,0.80274959,16841.0,16840.0,1.41613023]
[1672963954141,0.80274959,16841.0,16840.0,1.34951323]
[1672963954686,1.41435259,16841.0,16840.0,1.34951323]
[1672963955197,0.80274959,16841.0,16840.0,1.34951323]
[1672963955703,0.44643344,16841.0,16840.0,1.34951323]
[1672963956451,0.001,16841.0,16840.0,0.64102267]
[1672963957239,0.594788,16841.0,16840.0,0.1432924]
[1672963957705,0.594788,16841.0,16840.0,0.64071145]
[1672963957964,0.594788,16841.0,16840.0,0.1432924]
[1672963958506,0.62039716,16841.0,16840.0,0.1432924]
[1672963958762,1.21418516,16841.0,16840.0,0.1432924]
[1672963959016,1.39579783,16841.0,16840.0,0.1432924]
[1672963959302,1.92915108,16841.0,16840.0,0.1432924]
[1672963959572,1.21418516,16841.0,16840.0,0.1432924]
[1672963964707,1.21418516,16841.0,16840.0,0.1431894]
[1672963966799,2.35914141,16841.0,16840.0,0.1431894]
[1672963967349,1.74753841,16841.0,16840.0,0.1431894]
[1672963967869,1.21418516,16841.0,16840.0,0.1431894]
[1672963968948,1.49378482,16841.0,16840.0,0.1431894]
[1672963974236,1.06559345,16841.0,16840.0,0.80556564]
[1672963975222,0.62039716,16841.0,16840.0,0.80556564]
[1672963975465,0.62039716,16841.0,16840.0,0.1431894]
[1672963976778,1.21418516,16841.0,16840.0,0.1431894]
[1672963977776,0.62039716,16841.0,16840.0,0.1431894]
[1672963978037,0.83311326,16841.0,16840.0,0.1431894]
[1672963979764,0.594788,16841.0,16840.0,0.8220968]
[1672963980006,0.594788,16841.0,16840.0,1.48447304]
[1672963980259,1.04005359,16841.0,16840.0,1.48447304]
[1672963980747,0.594788,16841.0,16840.0,1.48447304]
[1672963981259,1.04005405,16841.0,16840.0,1.48447304]
[1672963981519,0.594788,16841.0,16840.0,1.48447304]
[1672963982314,0.82883273,16841.0,16840.0,1.48447304]
[1672963984740,0.594788,16841.0,16840.0,1.48447304]
[1672963985002,0.44634493,16841.0,16840.0,1.55102538]
[1672963985571,0.80262066,16841.0,16840.0,1.55102538]
[1672963985829,0.80262066,16841.0,16840.0,0.20974174]
[1672963986080,0.594788,16841.0,16840.0,0.14312474]
[1672963986632,0.44638376,16841.0,16840.0,1.0568839]
[1672963986906,0.44638376,16841.0,16840.0,8.2472842]
[1672963986907,0.80268407,16841.0,16840.0,8.2472842]
[1672963987156,0.44638376,16841.0,16840.0,8.2472842]
[1672963987411,0.44638376,16841.0,16840.0,8.3139012]
[1672963987902,0.44638376,16841.0,16840.0,0.8139012]
[1672963988130,0.44638376,16841.0,16840.0,0.7472842]
[1672963988395,0.44638376,16841.0,16840.0,1.40966044]
[1672963988651,0.44638376,16841.0,16840.0,1.47627744]
[1672963989681,0.22028919,16841.0,16840.0,0.7472842]
[1672963990453,0.81407719,16841.0,16840.0,0.7472842]
[1672963991179,1.40786519,16841.0,16840.0,0.7472842]
[1672963991438,1.94121844,16841.0,16840.0,0.7472842]
[1672963992656,1.72192925,16841.0,16840.0,0.7472842]
[1672963993122,1.72192925,16841.0,16840.0,0.14312474]
[1672963993894,1.12814125,16841.0,16840.0,1.42507725]
[1672963994150,0.001,16841.0,16840.0,1.49169425]
[1672963994947,0.001,16841.0,16840.0,1.42507725]
[1672963996540,1.30289456,16841.0,16840.0,0.14312474]
[1672963996838,1.30289456,16841.0,16840.0,0.13794802]
[1672963996839,1.33031893,16841.0,16840.0,0.13794802]
[1672963997324,1.15556562,16841.0,16840.0,0.13794802]
[1672963997847,1.74935362,16841.0,16840.0,0.13794802]
[1672964000177,2.35995662,16841.0,16840.0,0.003552]
[1672964000436,2.36095662,16841.0,16840.0,0.118552]
[1672964000749,1.74935362,16841.0,16840.0,0.118552]
[1672964001235,2.04374092,16841.0,16840.0,0.118552]
[1672964001760,1.51038767,16841.0,16840.0,0.118552]
[1672964002110,2.65656879,16841.0,16840.0,0.118552]
[1672964002284,1.51038767,16841.0,16840.0,0.118552]
[1672964002538,2.04491112,16841.0,16840.0,0.118552]
[1672964003014,1.51038767,16841.0,16840.0,0.118552]
[1672964004017,2.04493654,16841.0,16840.0,0.118552]
[1672964004281,1.51038767,16841.0,16840.0,0.118552]
[1672964004507,2.04488723,16841.0,16840.0,0.118552]
[1672964008333,2.01746286,16841.0,16840.0,0.73772987]
[1672964008851,2.01746286,16841.0,16840.0,0.73766127]
[1672964010052,1.4829633,16841.0,16840.0,0.73766127]
[1672964010811,2.01746286,16841.0,16840.0,0.73766127]
[1672964012030,1.4829633,16841.0,16840.0,0.73766127]
[1672964012288,2.01746286,16841.0,16840.0,0.73766127]
[1672964012544,1.4829633,16841.0,16840.0,0.73766127]
[1672964012780,0.8891753,16841.0,16840.0,0.73772987]
[1672964013049,0.8891753,16841.0,16840.0,0.73766127]
[1672964017621,0.594788,16841.0,16840.0,0.73766127]
[1672964017898,0.594788,16841.0,16840.0,0.73772987]
[1672964018122,0.001,16841.0,16840.0,0.73772987]
[1672964018666,0.44633798,16841.0,16840.0,1.13772987]
[1672964018919,0.44633798,16841.0,16840.0,1.40010611]
[1672964019175,0.44633798,16841.0,16840.0,1.46672311]
[1672964019702,0.44633798,16841.0,16840.0,1.40010611]
[1672964020520,0.44633798,16841.0,16840.0,1.46672311]
[1672964020774,0.44633798,16841.0,16840.0,1.46665983]
[1672964022673,0.44632633,16841.0,16840.0,1.46665983]
[1672964022923,0.4462642,16841.0,16840.0,1.39997423]
[1672964023710,0.4462642,16841.0,16840.0,1.46659123]
[1672964025058,0.4462642,16841.0,16840.0,1.86659123]
[1672964025399,0.4462642,16841.0,16840.0,1.46659123]
[1672964026141,0.19467555,16841.0,16840.0,0.11848872]
[1672964026396,1.38225155,16841.0,16840.0,0.11848872]
[1672964026661,1.91675111,16841.0,16840.0,0.11848872]
[1672964029315,1.38225155,16841.0,16840.0,0.11848872]
[1672964029567,1.97603955,16841.0,16840.0,0.11848872]
[1672964029813,2.58764255,16841.0,16840.0,0.11848872]
[1672964030338,1.97603955,16841.0,16840.0,0.11848872]
[1672964031627,1.81597743,16841.0,16840.0,0.11848872]
[1672964032618,2.35025565,16841.0,16840.0,0.11848872]
[1672964036439,1.81597743,16841.0,16840.0,0.11848872]
[1672964040100,2.35018908,16841.0,16840.0,0.11848872]
[1672964041375,2.35018908,16841.0,16840.0,0.11165172]
[1672964042441,1.81597743,16841.0,16840.0,0.11165172]
[1672964042923,2.35011258,16841.0,16840.0,0.11165172]
[1672964043737,1.81597743,16841.0,16840.0,0.11165172]
[1672964043995,2.35012264,16841.0,16840.0,0.11165172]
[1672964044221,2.59179372,16841.0,16840.0,0.11165172]
[1672964046272,2.59178499,16841.0,16840.0,0.11165172]
[1672964046525,2.59178396,16841.0,16840.0,0.11165172]
[1672964046778,2.05764851,16841.0,16840.0,0.11165172]
[1672964047098,2.59178036,16841.0,16840.0,0.11165172]
[1672964047281,2.05764851,16841.0,16840.0,0.11165172]
[1672964053988,1.81597743,16841.0,16840.0,0.11165172]
[1672964055494,2.35013794,16841.0,16840.0,0.11165172]
[1672964055786,1.81597743,16841.0,16840.0,0.11165172]
[1672964056301,1.81597743,16841.0,16840.0,0.11172032]
[1672964056302,2.36791349,16841.0,16840.0,0.11172032]
[1672964056576,1.75631049,16841.0,16840.0,0.11165172]
[1672964057883,2.05750624,16841.0,16840.0,0.11165172]
[1672964060557,2.05750624,16841.0,16840.0,0.11172032]
[1672964060823,1.72263646,16841.0,16840.0,1.43595561]
[1672964061066,1.1885154,16841.0,16840.0,0.77357937]
[1672964061359,0.5947274,16841.0,16840.0,0.84019637]
[1672964061873,0.5947274,16841.0,16840.0,0.77357937]
[1672964062124,0.5947274,16841.0,16840.0,1.41887119]
[1672964062386,1.12884846,16841.0,16840.0,0.77357937]
[1672964063430,0.5947274,16841.0,16840.0,0.84019637]
[1672964063971,0.5947274,16841.0,16840.0,0.84011166]
[1672964064237,0.5947274,16841.0,16840.0,0.77349466]
[1672964064478,0.5947274,16841.0,16840.0,0.84011166]
[1672964064729,0.5947274,16841.0,16840.0,0.77349466]
[1672964065249,0.5947274,16841.0,16840.0,0.77356326]
[1672964065496,0.5947274,16841.0,16840.0,0.84018026]
[1672964066008,0.5947274,16841.0,16840.0,0.84011166]
[1672964066291,1.12884846,16841.0,16840.0,0.77349466]
[1672964072715,1.12884846,16841.0,16840.0,0.77356326]
[1672964072968,1.12884846,16841.0,16840.0,0.77349466]
[1672964073508,0.5947274,16841.0,16840.0,0.84011166]
[1672964073765,0.5947274,16841.0,16840.0,0.77349466]
[1672964074022,1.12884846,16841.0,16840.0,0.77356326]
[1672964074274,0.5947274,16841.0,16840.0,0.77349466]
[1672964074832,0.5947274,16841.0,16840.0,0.77356326]
[1672964075096,0.5947274,16841.0,16840.0,0.84018026]
[1672964075425,0.5947274,16841.0,16840.0,0.77356326]
[1672964076173,0.5947274,16841.0,16840.0,0.77349466]
[1672964079309,0.5947274,16841.0,16840.0,0.77356326]
[1672964079914,0.5947274,16841.0,16840.0,0.77349466]
[1672964081462,0.5947274,16841.0,16840.0,0.77356326]
[1672964081688,0.5947274,16841.0,16840.0,0.77349466]
[1672964083901,0.5947274,16841.0,16840.0,0.77356326]
[1672964084149,0.5947274,16841.0,16840.0,0.77349466]
[1672964084920,0.59466364,16841.0,16840.0,0.77356326]
[1672964086442,0.59466364,16841.0,16840.0,0.77349466]
[1672964091238,0.59466364,16841.0,16840.0,0.84011166]
[1672964091494,0.59466364,16841.0,16840.0,0.77349466]
[1672964092904,0.00087564,16841.0,16840.0,0.77349466]
[1672964093434,0.00087564,16841.0,16840.0,0.84011166]
[1672964093688,0.00087564,16841.0,16840.0,0.77356326]
[1672964094532,0.00087564,16841.0,16840.0,0.77349466]
[1672964095090,0.5349967,16841.0,16840.0,0.77349466]
[1672964095836,0.5349967,16841.0,16840.0,0.84011166]
[1672964096348,0.5349967,16841.0,16840.0,0.84018026]
[1672964096594,0.5349967,16841.0,16840.0,0.77356326]
[1672964096838,0.5349967,16841.0,16840.0,0.84018026]
[1672964097062,0.5349967,16841.0,16840.0,0.77356326]
[1672964098185,0.5349967,16841.0,16840.0,0.77349466]
[1672964101437,0.5228727,16841.0,16840.0,0.77349466]
[1672964101944,1.7104487,16841.0,16840.0,0.77349466]
[1672964102449,1.187576,16841.0,16840.0,0.77349466]
[1672964102707,1.187576,16841.0,16840.0,0.77356326]
[1672964103221,1.187576,16841.0,16840.0,0.77349466]
[1672964104566,1.187576,16841.0,16840.0,0.77356326]
[1672964107465,1.72233867,16841.0,16840.0,0.77356326]
[1672964112764,1.72233867,16841.0,16840.0,0.84018026]
[1672964113295,1.72233867,16841.0,16840.0,0.77356326]
[1672964114249,1.72233867,16841.0,16840.0,0.84018026]
[1672964114501,1.72233867,16841.0,16840.0,0.77349466]
[1672964115472,1.72233867,16841.0,16840.0,0.84011166]
[1672964115992,1.72233867,16841.0,16840.0,0.77349466]
[1672964116234,1.72233867,16841.0,16840.0,0.84011166]
[1672964116474,1.72233867,16841.0,16840.0,0.84018026]
[1672964116721,1.72233867,16841.0,16840.0,0.77356326]
[1672964117542,1.72233867,16841.0,16840.0,0.84018026]
[1672964117791,1.72233867,16841.0,16840.0,0.77356326]
[1672964120882,1.72233867,16841.0,16840.0,0.77349466]
[1672964121635,2.33394167,16841.0,16840.0,0.77349466]
[1672964121904,1.72233867,16841.0,16840.0,0.77349466]
[1672964122918,1.72233867,16841.0,16840.0,0.77339256]
[1672964123499,1.72233867,16841.0,16840.0,0.84000956]
[1672964123701,1.72233867,16841.0,16840.0,0.77339256]
[1672964124447,1.72233867,16841.0,16840.0,0.77346116]
[1672964124663,1.72233867,16841.0,16840.0,0.77339256]
[1672964125429,1.72233867,16841.0,16840.0,0.77346116]
[1672964125682,1.72233867,16841.0,16840.0,0.77339256]
[1672964126985,1.72233867,16841.0,16840.0,0.77346116]
[1672964131591,1.72233867,16841.0,16840.0,0.77339256]
[1672964132109,2.08352741,16841.0,16840.0,0.77339256]
[1672964133098,1.72233867,16841.0,16840.0,0.77339256]
[1672964134109,2.33394167,16841.0,16840.0,0.77339256]
[1672964134632,1.72233867,16841.0,16840.0,0.77339256]
[1672964135892,1.187576,16841.0,16840.0,0.77339256]
[1672964136776,1.72233057,16841.0,16840.0,0.77339256]
[1672964137023,1.187576,16841.0,16840.0,0.77339256]
[1672964137787,1.72232224,16841.0,16840.0,0.77339256]
[1672964144665,1.80164938,16841.0,16840.0,0.77339256]
[1672964144931,1.26690314,16841.0,16840.0,0.77339256]
[1672964145164,1.87850614,16841.0,16840.0,0.77339256]
[1672964145670,1.26690314,16841.0,16840.0,0.77346116]
[1672964145925,1.187576,16841.0,16840.0,0.77327457]
[1672964146455,1.72231101,16841.0,16840.0,0.77327457]
[1672964150470,1.72231101,16841.0,16840.0,0.77334317]
[1672964150724,1.72231101,16841.0,16840.0,0.77327457]
[1672964152520,2.01726026,16841.0,16840.0,0.77327457]
[1672964153541,2.62886326,16841.0,16840.0,0.77327457]
[1672964153852,2.01726026,16841.0,16840.0,0.77327457]
[1672964154568,1.72231101,16841.0,16840.0,0.77327457]
[1672964156478,1.72231101,16841.0,16840.0,0.77334317]
[1672964157511,1.72231101,16841.0,16840.0,0.77327457]
[1672964158841,1.72231101,16841.0,16840.0,0.77334317]
[1672964160373,1.72231101,16841.0,16840.0,0.83989157]
[1672964160870,1.72231101,16841.0,16840.0,0.77327457]
[1672964161093,2.33391401,16841.0,16840.0,0.77327457]
[1672964161362,1.72231101,16841.0,16840.0,0.77327457]
[1672964161585,1.72231101,16841.0,16840.0,0.83989157]
[1672964161834,1.72231101,16841.0,16840.0,0.77327457]
[1672964162093,2.08349789,16841.0,16840.0,0.77327457]
[1672964162868,2.69510089,16841.0,16840.0,0.77327457]
[1672964163130,2.08349789,16841.0,16840.0,0.77327457]
[1672964164391,1.72231101,16841.0,16840.0,0.77327457]
[1672964165940,1.72231101,16841.0,16840.0,0.77334317]
[1672964166200,1.72231101,16841.0,16840.0,0.77327457]
[1672964166689,1.72231101,16841.0,16840.0,0.77319474]
[1672964169011,2.33391401,16841.0,16840.0,0.77319474]
[1672964169360,1.72231101,16841.0,16840.0,0.77319474]
[1672964170037,2.01726026,16841.0,16840.0,0.77319474]
[1672964171530,2.62886326,16841.0,16840.0,0.77319474]
[1672964171788,2.01726026,16841.0,16840.0,0.77319474]
[1672964172558,1.48252525,16841.0,16840.0,0.11126709]
[1672964172819,2.07631325,16841.0,16840.0,0.11126709]
[1672964174620,2.07631325,16841.0,16840.0,0.11133569]
[1672964174869,2.07631325,16841.0,16840.0,0.11126709]
[1672964176390,2.61106294,16841.0,16840.0,0.11126709]
[1672964176930,2.61106294,16841.0,16840.0,0.11133569]
[1672964177711,2.61106294,16841.0,16840.0,0.11126709]
[1672964181362,2.61106294,16841.0,16840.0,0.11133569]
[1672964181612,1.72232569,16841.0,16840.0,0.11133569]
[1672964181850,1.72232569,16841.0,16840.0,0.17795269]
[1672964182975,1.72232569,16841.0,16840.0,0.11133569]
[1672964183503,1.72232569,16841.0,16840.0,0.17795269]
[1672964183760,1.72232569,16841.0,16840.0,0.11133569]
[1672964184020,1.72232569,16841.0,16840.0,0.11126709]
[1672964184269,1.72232569,16841.0,16840.0,0.17788409]
[1672964184523,1.72232569,16841.0,16840.0,0.11133569]
[1672964185062,1.72226145,16841.0,16840.0,0.11126709]
[1672964185840,1.18751176,16841.0,16840.0,0.11126709]
[1672964186098,1.72227587,16841.0,16840.0,0.11126709]
[1672964187649,1.18751176,16841.0,16840.0,0.11126709]
[1672964188886,1.72227713,16841.0,16840.0,0.11126709]
[1672964190184,1.72227713,16841.0,16840.0,0.17788409]
[1672964190438,1.72227713,16841.0,16840.0,0.11133569]
[1672964190692,1.72227713,16841.0,16840.0,0.11126709]
[1672964192934,1.72227713,16841.0,16840.0,0.11133569]
[1672964193200,1.72227713,16841.0,16840.0,0.11126709]
[1672964193421,1.72227713,16841.0,16840.0,0.82344259]
[1672964193677,1.72227713,16841.0,16840.0,0.89005959]
[1672964193934,1.72227713,16841.0,16840.0,0.89012819]
[1672964194711,1.72227713,16841.0,16840.0,0.82351119]
[1672964194976,1.72227713,16841.0,16840.0,0.82344259]
[1672964195238,1.72227713,16841.0,16840.0,0.89005959]
[1672964195518,1.72227713,16841.0,16840.0,0.89012819]
[1672964196729,1.72227713,16841.0,16840.0,0.89005959]
[1672964200294,1.72227713,16841.0,16840.0,0.89012819]
[1672964202081,1.72227713,16841.0,16840.0,0.82351119]
[1672964202584,1.72227713,16841.0,16840.0,0.89012819]
[1672964203099,1.72227713,16841.0,16840.0,0.82351119]
[1672964203902,1.72227713,16841.0,16840.0,0.89012819]
[1672964204669,1.72227713,16841.0,16840.0,0.82351119]
[1672964204961,1.72227713,16841.0,16840.0,0.82344259]
[1672964205750,1.72227713,16841.0,16840.0,0.82336211]
[1672964206002,1.72227713,16841.0,16840.0,0.88997911]
[1672964206800,1.72227713,16841.0,16840.0,0.82336211]
[1672964207931,1.72227713,16841.0,16840.0,1.55235535]
[1672964208667,1.72227713,16841.0,16840.0,1.55242395]
[1672964209193,1.72227713,16841.0,16840.0,1.48573835]
[1672964209462,1.72227713,16841.0,16840.0,1.55235535]
[1672964209719,1.72227713,16841.0,16840.0,1.48573835]
[1672964209977,1.72227713,16841.0,16840.0,1.55242395]
[1672964210244,1.72227713,16841.0,16840.0,0.82343071]
[1672964210505,0.59372376,16841.0,16840.0,0.89004771]
[1672964211030,0.59372376,16841.0,16840.0,0.82343071]
[1672964211817,0.59372376,16841.0,16840.0,0.82336211]
[1672964217843,1.18751176,16841.0,16840.0,0.82336211]
[1672964218359,2.33388013,16841.0,16840.0,0.82336211]
[1672964218613,1.72227713,16841.0,16840.0,0.82336211]
[1672964222267,1.12848913,16841.0,16840.0,0.82336211]
[1672964222528,0.59372376,16841.0,16840.0,0.82336211]
[1672964223088,0.59372376,16841.0,16840.0,0.88997911]
[1672964224076,0.59372376,16841.0,16840.0,0.82336211]
[1672964225994,0.59372376,16841.0,16840.0,0.88991679]
[1672964226508,1.03918507,16841.0,16840.0,0.82329979]
[1672964228060,1.03918507,16841.0,16840.0,0.88991679]
[1672964228606,1.03918507,16841.0,16840.0,0.82329979]
[1672964229396,0.59372376,16841.0,16840.0,0.82329979]
[1672964229927,1.16120349,16842.0,16840.0,0.88991679]
[1672964230191,1.16120349,16842.0,16840.0,0.82329979]
[1672964230475,0.44546057,16841.0,16840.0,0.82329979]
[1672964230732,0.44546048,16841.0,16840.0,0.88991479]
[1672964231295,0.44546048,16841.0,16840.0,0.7787905]
[1672964231559,0.44546048,16841.0,16840.0,0.8197905]
[1672964232093,0.44646048,16841.0,16840.0,0.8927905]
[1672964233390,0.001,16841.0,16840.0,0.8927905]
[1672964234244,0.44647692,16841.0,16840.0,0.8927905]
[1672964237105,0.001,16841.0,16840.0,0.8261755]
[1672964237655,1.188576,16841.0,16840.0,0.8261755]
[1672964240967,1.42355505,16841.0,16840.0,0.8261755]
[1672964241592,1.72334137,16841.0,16840.0,0.114]
[1672964241789,2.33494437,16841.0,16840.0,0.114]
[1672964242048,1.72334137,16841.0,16840.0,0.114]
[1672964242907,1.72327842,16841.0,16840.0,0.114]
[1672964245687,2.33488142,16841.0,16840.0,0.114]
[1672964246155,1.72327842,16841.0,16840.0,0.114]
[1672964249897,2.33488142,16841.0,16840.0,0.114]
[1672964250146,1.72327842,16841.0,16840.0,0.114]
[1672964251496,1.72327842,16841.0,16840.0,0.77637624]
[1672964252403,1.72327842,16841.0,16840.0,0.114]
[1672964254613,2.33488142,16841.0,16840.0,0.114]
[1672964254863,1.72327842,16841.0,16840.0,0.114]
[1672964258384,1.18851305,16841.0,16840.0,0.114]
[1672964258632,1.18851305,16841.0,16840.0,1.38306922]
[1672964258880,1.18851305,16841.0,16840.0,0.72069298]
[1672964261474,1.18851305,16841.0,16840.0,0.78730998]
[1672964261700,0.59472505,16841.0,16840.0,0.78730998]
[1672964262441,0.59472505,16841.0,16840.0,0.72069298]
[1672964262685,0.59472505,16841.0,16840.0,0.78730998]
[1672964263200,0.00093705,16841.0,16840.0,0.78730998]
[1672964263691,0.44642583,16841.0,16840.0,0.78730998]
[1672964263959,0.00093705,16841.0,16840.0,0.78730998]
[1672964265770,0.00093705,16841.0,16840.0,0.78724143]
[1672964266024,0.00093705,16841.0,16840.0,1.28724143]
[1672964266793,0.44642426,16841.0,16840.0,1.28724143]
[1672964268822,0.44642426,16841.0,16840.0,1.98724143]
[1672964269082,0.00093705,16841.0,16840.0,1.98724143]
[1672964269614,0.00093705,16841.0,16840.0,1.92062443]
[1672964270114,0.00093705,16841.0,16840.0,1.98724143]
[1672964272078,0.00093705,16841.0,16840.0,1.92062443]
[1672964272302,0.00093705,16841.0,16840.0,1.98724143]
[1672964272639,0.00093705,16841.0,16840.0,1.92062443]
[1672964272892,0.59472505,16841.0,16840.0,1.22062443]
[1672964273138,1.18851305,16841.0,16840.0,1.22062443]
[1672964273396,1.72327842,16841.0,16840.0,1.22062443]
[1672964274177,1.72327842,16841.0,16840.0,0.72062443]
[1672964286273,1.72327842,16841.0,16840.0,0.78712886]
[1672964286588,1.12949042,16841.0,16840.0,0.78712886]
[1672964286847,0.59472505,16841.0,16840.0,0.78712886]
[1672964287754,0.59472505,16841.0,16840.0,0.72051186]
[1672964290037,0.59472505,16841.0,16840.0,0.78712886]
[1672964291068,0.59472505,16841.0,16840.0,0.72051186]
[1672964296775,1.12949042,16841.0,16840.0,0.72051186]
[1672964298298,1.12949042,16841.0,16840.0,0.11381888]
[1672964299279,1.72327842,16841.0,16840.0,0.11381888]
[1672964299549,1.12949042,16841.0,16840.0,0.11381888]
[1672964299812,1.12949042,16841.0,16840.0,0.74789079]
[1672964302116,1.12949042,16841.0,16840.0,0.11381888]
[1672964302349,1.12949042,16841.0,16840.0,0.77052195]
[1672964303357,1.72327842,16841.0,16840.0,0.77052195]
[1672964304921,1.72327842,16841.0,16840.0,0.11381888]
[1672964305715,1.12949042,16841.0,16840.0,0.77051965]
[1672964307528,0.59472505,16841.0,16840.0,0.77051965]
[1672964308532,1.12949042,16841.0,16840.0,0.77051965]
[1672964308786,1.12949042,16841.0,16840.0,0.77042326]
[1672964309031,0.59472505,16841.0,16840.0,0.77042326]
[1672964310274,1.12949042,16841.0,16840.0,0.77042326]
[1672964310782,0.59472505,16841.0,16840.0,0.77042326]
[1672964312338,1.12949042,16841.0,16840.0,0.77042326]
[1672964313654,0.59472505,16841.0,16840.0,0.77042326]
[1672964313909,1.12949042,16841.0,16840.0,0.77042326]
[1672964314941,0.59472505,16841.0,16840.0,0.77042326]
[1672964319526,0.00093705,16841.0,16840.0,0.77042326]
[1672964319832,0.61254005,16841.0,16840.0,0.77042326]
[1672964320000,0.00093705,16841.0,16840.0,0.77042326]
[1672964320249,0.00093705,16841.0,16840.0,0.83704026]
[1672964321234,0.62651028,16841.0,16840.0,0.77042326]
[1672964321491,2.0735761,16841.0,16840.0,0.11372249]
[1672964321741,1.99673847,16841.0,16840.0,0.11372249]
[1672964322493,1.75506365,16841.0,16840.0,0.11372249]
[1672964325365,1.75506365,16841.0,16840.0,0.77609873]
[1672964325618,1.83190128,16841.0,16840.0,0.77609873]
[1672964325879,1.22029828,16841.0,16840.0,0.77609873]
[1672964327154,0.62651028,16841.0,16840.0,0.77609873]
[1672964327420,0.03272228,16841.0,16840.0,0.77609873]
[1672964328213,0.03272228,16841.0,16840.0,0.84271573]
[1672964328478,0.80201445,16841.0,16840.0,0.77609873]
[1672964329272,0.03272228,16841.0,16840.0,0.77609873]
[1672964329528,0.03272228,16841.0,16840.0,0.84271573]
[1672964330526,0.00093705,16841.0,16840.0,0.84271573]
[1672964331791,0.00093705,16841.0,16840.0,0.84264277]
[1672964332311,0.00093705,16841.0,16840.0,0.77602577]
[1672964332817,0.00093705,16841.0,16840.0,0.84264277]
[1672964333085,0.00093705,16841.0,16840.0,0.77602577]
[1672964334909,0.00093705,16841.0,16840.0,0.84264277]
[1672964338789,0.00093705,16841.0,16840.0,0.77602577]
[1672964340877,0.00093705,16841.0,16840.0,0.84264277]
[1672964341145,0.00093705,16841.0,16840.0,0.77602577]
[1672964341697,0.00085248,16841.0,16840.0,0.77602577]
[1672964341921,0.00085248,16841.0,16840.0,0.84264277]
[1672964342176,0.00085248,16841.0,16840.0,0.77602577]
[1672964343192,0.00085248,16841.0,16840.0,0.84264277]
[1672964343444,0.00085248,16841.0,16840.0,0.77602577]
[1672964344209,0.00085248,16841.0,16840.0,0.84264277]
[1672964344704,0.00085248,16841.0,16840.0,0.77602577]
[1672964347151,0.00085248,16841.0,16840.0,1.27602577]
[1672964347667,0.53561785,16841.0,16840.0,1.27602577]
[1672964348181,0.00085248,16841.0,16840.0,1.27602577]
[1672964348923,0.59464048,16841.0,16840.0,1.27602577]
[1672964350475,1.15764693,16841.0,16840.0,0.11364953]